[Event "Walton Rating Tournament 2023"]
[Site "Dhaka"]
[Date "2023.12.31"]
[Round "2.6"]
[White "Mohammad Minhaz Uddin"]
[Black "Mohammad, Din"]
[Result "1-0"]
[ECO "B07"]
[WhiteElo "2221"]
[BlackElo "1799"]
[Annotator "RC"]
[PlyCount "86"]
[EventDate "2023.12.30"]
[EventType "swiss"]
[EventCountry "BAN"]
[SourceTitle "playchess.com"]
[Source "ChessBase"]
[SourceQuality "1"]
[TimeControl "5400+30"]

1. e4 {[%emt 0:21:34]} d6 {[%emt 0:00:11]} 2. d4 {[%emt 0:00:16]} Nf6 {[%emt 0:00:24]} 3. Nc3 {[%emt 0:00:13]} e5 {[%emt 0:00:16]} 4. dxe5 {[%emt 0:00:53]} dxe5 {[%emt 0:00:02]} 5. Qxd8+ {[%emt 0:00:10]} Kxd8 {[%emt 0:00:11]} 6. Bc4 {[%emt 0:00:11]} Be6 {[%emt 0:00:08]} 7. Bxe6 {[%emt 0:00:05]} fxe6 {[%emt 0:00:04]} 8. Nf3 {[%emt 0:01:03]} Bd6 {[%emt 0:00:12]} 9. Bg5 {[%emt 0:00:28]} Ke7 {[%emt 0:00:10]} 10. O-O-O {[%emt 0:01:07]} Nc6 {[%emt 0:00:44]} 11. Bh4 {[%emt 0:00:42]} a6 {[%emt 0:00:22]} 12. Ne2 {[%emt 0:02:17]} Rad8 {[%emt 0:00:25]} 13. Ne1 {[%emt 0:01:46]} Bc5 {[%emt 0:00:18]} 14. Nd3 {[%emt 0:00:08]} Bd6 {[%emt 0:00:13]} 15. g3 {[%emt 0:07:55]} h6 {[%emt 0:00:30]} 16. f4 {[%emt 0:00:02]} Rhg8 {[%emt 0:00:15]} 17. f5 {[%emt 0:02:09]} Kf7 {[%emt 0:00:08]} 18. g4 {[%emt 0:04:09]} Rde8 {[%emt 0:00:10]} 19. Bxf6 {[%emt 0:02:53]} gxf6 {[%emt 0:00:07]} 20. Rhg1 {[%emt 0:00:18]} exf5 {[%emt 0:00:19]} 21. gxf5 {[%emt 0:00:08]} Nd4 {[%emt 0:00:17]} 22. Ng3 {[%emt 0:08:43]} Rg5 {[%emt 0:03:14]} 23. Rgf1 {[%emt 0:00:30]} h5 {[%emt 0:00:30]} 24. c3 {[%emt 0:00:30]} Nc6 {[%emt 0:00:10]} 25. Rf3 {[%emt 0:04:41]} Rh8 {[%emt 0:01:43]} 26. Nh1 {[%emt 0:01:20]} h4 {[%emt 0:00:16]} 27. Nhf2 {[%emt 0:00:19]} Rg2 {[%emt 0:00:11]} 28. Rh3 {[%emt 0:00:13]} b6 {[%emt 0:01:36]} 29. Kd2 {[%emt 0:07:40]} a5 {[%emt 0:01:38]} 30. a4 {[%emt 0:01:09]} Nb8 {[%emt 0:01:57]} 31. Ke2 {[%emt 0:00:26]} Na6 {[%emt 0:00:40]} 32. Kf3 {[%emt 0:00:09]} Rgg8 {[%emt 0:00:10]} 33. Ng4 {[%emt 0:32:53]} Rd8 {[%emt 0:00:53]} 34. Ke2 {[%emt 0:01:32]} Rdg8 {[%emt 0:01:09]} 35. Rg1 {[%emt 0:02:28]} Bc5 {[%emt 0:00:19]} 36. Rg2 {[%emt 0:00:07]} Rg5 {[%emt 0:00:24]} 37. Ngxe5+ {[%emt 0:00:13]} Kg7 {[%emt 0:00:15]} 38. Rxg5+ {[%emt 0:01:00]} fxg5 {[%emt 0:00:03]} 39. Ng4 {[%emt 0:00:29]} Re8 {[%emt 0:00:07]} 40. e5 {[%emt 0:00:08]} Bf8 {[%emt 1:29:49]} 41. Re3 {[%emt 0:00:23]} c6 {[%emt 0:00:19]} 42. e6 {[%emt 0:00:56]} Nc5 {[%emt 0:00:15]} 43. e7 {[%emt 0:00:33]} Nxa4 {[%emt 0:00:24]} 1-0

[Event "Walton Rating Tournament 2023"]
[Site "Dhaka"]
[Date "2024.01.01"]
[Round "3.1"]
[White "Rahman, Ziaur"]
[Black "Mohammad Shafiqul, Islam"]
[Result "*"]
[ECO "A48"]
[WhiteElo "2436"]
[BlackElo "1928"]
[Annotator "RC"]
[PlyCount "35"]
[EventDate "2023.12.30"]
[EventType "swiss"]
[EventCountry "BAN"]
[SourceTitle "playchess.com"]
[Source "ChessBase"]
[SourceQuality "1"]
[TimeControl "5400+30"]

1. Nf3 {[%emt 0:01:20]} Nf6 {[%emt 0:00:36]} 2. d4 {[%emt 0:00:51]} g6 {[%emt 0:01:05]} 3. Bf4 {[%emt 0:01:57]} Bg7 {[%emt 0:00:14]} 4. c3 {[%emt 0:00:04]} d6 {[%emt 0:00:41]} 5. Nbd2 {[%emt 0:00:40]} Nh5 {[%emt 0:06:24]} 6. Bg5 {[%emt 0:01:30]} h6 {[%emt 1:24:30]} 7. Bh4 {[%emt 0:01:41]} Nc6 {[%emt 0:04:27]} 8. e4 {[%emt 0:06:09]} O-O {[%emt 1:12:31]} 9. d5 {[%emt 1:20:48]} Ne5 {[%emt 0:01:29]} 10. Nxe5 {[%emt 0:00:59]} Bxe5 {[%emt 0:01:17]} 11. Nc4 {[%emt 0:01:17]} Bg7 {[%emt 0:01:04]} 12. Ne3 {[%emt 0:01:15]} Qe8 {[%emt 0:02:55]} 13. Bd3 {[%emt 0:05:54]} e5 {[%emt 0:19:21]} 14. dxe6 {[%emt 0:00:27]} fxe6 {[%emt 0:00:31]} 15. Qd2 {[%emt 0:01:43]} Bd7 {[%emt 0:02:40]} 16. f3 {[%emt 0:03:47]} g5 {[%emt 0:07:59]} 17. Bf2 {[%emt 0:00:28]} Nf4 {[%emt 0:01:12]} 18. Bc2 {[%emt 0:01:56]} *

[Event "Walton Rating Tournament 2023"]
[Site "Dhaka"]
[Date "2024.01.01"]
[Round "3.2"]
[White "Zia, Tahsin Tajwar"]
[Black "Mohammad Shafiqul, Islam"]
[Result "1-0"]
[ECO "D00"]
[WhiteElo "2303"]
[BlackElo "1928"]
[Annotator "RC"]
[PlyCount "45"]
[EventDate "2023.12.30"]
[EventType "swiss"]
[EventCountry "BAN"]
[SourceTitle "playchess.com"]
[Source "ChessBase"]
[SourceQuality "1"]
[TimeControl "5400+30"]

1. d4 {[%emt 0:01:22]} Nf6 {[%emt 0:00:25]} 2. Bg5 {[%emt 0:00:15]} d5 {[%emt 0:01:00]} 3. e3 {[%emt 0:00:06]} e6 {[%emt 0:00:59]} 4. Nd2 {[%emt 0:00:15]} Nbd7 {[%emt 0:04:53]} 5. f4 {[%emt 0:01:03]} c5 {[%emt 0:12:26]} 6. c3 {[%emt 0:01:12]} Qa5 {[%emt 0:17:02]} 7. Bd3 {[%emt 0:01:11]} c4 {[%emt 0:01:55]} 8. Bc2 {[%emt 0:00:18]} b5 {[%emt 0:00:12]} 9. a3 {[%emt 0:00:53]} Bb7 {[%emt 0:00:46]} 10. Ngf3 {[%emt 0:03:17]} Qc7 {[%emt 0:29:03]} 11. Ne5 {[%emt 0:05:44]} Nb6 {[%emt 0:00:12]} 12. Qf3 {[%emt 0:04:01]} Bd6 {[%emt 0:08:30]} 13. Bh4 {[%emt 0:01:02]} O-O-O {[%emt 0:01:38]} 14. a4 {[%emt 0:02:44]} bxa4 {[%emt 0:00:47]} 15. Bxa4 {[%emt 0:01:01]} Nxa4 {[%emt 0:00:04]} 16. Rxa4 {[%emt 0:00:04]} a6 {[%emt 0:00:39]} 17. O-O {[%emt 0:01:19]} Rdf8 {[%emt 0:00:12]} 18. Qe2 {[%emt 0:01:51]} Kb8 {[%emt 0:00:30]} 19. Rb1 {[%emt 0:01:54]} Nd7 {[%emt 0:01:27]} 20. b3 {[%emt 0:01:33]} Nb6 {[%emt 0:01:22]} 21. Ra2 {[%emt 0:00:17]} f6 {[%emt 0:00:11]} 22. bxc4 {[%emt 0:01:48]} Bxe5 {[%emt 0:00:20]} 23. c5 {[%emt 0:01:28]} 1-0

[Event "Walton Rating Tournament 2023"]
[Site "Dhaka"]
[Date "2024.01.01"]
[Round "3.3"]
[White "Uddin, Saif"]
[Black "Manon, Reja Neer"]
[Result "1/2-1/2"]
[ECO "A48"]
[WhiteElo "1938"]
[BlackElo "2243"]
[Annotator "RC"]
[PlyCount "206"]
[EventDate "2023.12.30"]
[EventType "swiss"]
[EventCountry "BAN"]
[SourceTitle "playchess.com"]
[Source "ChessBase"]
[SourceQuality "1"]
[TimeControl "5400+30"]

1. Nf3 {[%emt 0:00:30]} Nf6 {[%emt 0:07:18]} 2. b3 {[%emt 0:00:00]} g6 {[%emt 0:01:18]} 3. Bb2 {[%emt 0:01:10]} Bg7 {[%emt 0:00:01]} 4. e3 {[%emt 0:01:14]} d6 {[%emt 0:00:16]} 5. d4 {[%emt 0:00:11]} O-O {[%emt 0:00:32]} 6. Be2 {[%emt 0:00:58]} e5 {[%emt 0:01:14]} 7. dxe5 {[%emt 0:00:12]} Nfd7 {[%emt 0:00:12]} 8. Qc1 {[%emt 1:30:15]} dxe5 {[%emt 1:23:39]} 9. O-O {[%emt 0:00:00]} Re8 {[%emt 0:00:00]} 10. c4 {[%emt 0:00:00]} e4 {[%emt 0:00:00]} 11. Nfd2 {[%emt 0:00:00]} Qg5 {[%emt 0:00:00]} 12. Bxg7 {[%emt 0:00:00]} Kxg7 {[%emt 0:00:00]} 13. Nc3 {[%emt 0:00:00]} Nf6 {[%emt 0:00:00]} 14. Rd1 {[%emt 0:00:00]} Bh3 {[%emt 0:00:00]} 15. Bf1 {[%emt 0:00:00]} c6 {[%emt 0:00:00]} 16. Qc2 {[%emt 0:00:00]} Bf5 {[%emt 0:00:00]} 17. Ne2 {[%emt 0:00:00]} Nbd7 {[%emt 0:00:00]} 18. Ng3 {[%emt 0:00:00]} Ne5 {[%emt 0:00:00]} 19. Qc3 {[%emt 0:00:00]} Qh4 {[%emt 0:00:00]} 20. Be2 {[%emt 0:00:00]} Bg4 {[%emt 0:00:00]} 21. f3 {[%emt 0:00:00]} exf3 {[%emt 0:00:00]} 22. Nxf3 {[%emt 0:00:00]} Nxf3+ {[%emt 0:00:00]} 23. gxf3 {[%emt 0:00:00]} Bh3 {[%emt 0:00:00]} 24. Rd4 {[%emt 0:00:00]} Qg5 {[%emt 0:00:00]} 25. Kf2 {[%emt 0:00:00]} Qe5 {[%emt 0:00:00]} 26. f4 {[%emt 0:00:00]} Qe7 {[%emt 0:00:00]} 27. Re4 {[%emt 0:00:00]} Qxe4 {[%emt 0:04:42]} 28. Nxe4 {[%emt 0:00:00]} Rxe4 {[%emt 0:00:02]} 29. Bf3 {[%emt 0:00:00]} Re6 {[%emt 0:04:36]} 30. e4 {[%emt 0:00:00]} Rd8 {[%emt 0:01:06]} 31. Re1 {[%emt 0:00:00]} Kg8 {[%emt 0:00:31]} 32. Kg3 {[%emt 0:00:00]} Bg4 {[%emt 0:00:26]} 33. Bxg4 {[%emt 0:00:00]} Nxe4+ {[%emt 0:00:02]} 34. Rxe4 {[%emt 0:00:00]} Rxe4 {[%emt 0:00:01]} 35. Bf3 {[%emt 0:00:00]} Red4 {[%emt 0:00:01]} 36. f5 {[%emt 0:00:00]} gxf5 {[%emt 0:00:25]} 37. Qe1 {[%emt 0:00:00]} R8d6 {[%emt 0:02:04]} 38. Qe8+ {[%emt 0:00:00]} Kg7 {[%emt 0:00:02]} 39. Qe5+ {[%emt 0:00:00]} Kg6 {[%emt 0:00:04]} 40. c5 {[%emt 0:00:00]} Rd8 {[%emt 0:00:46]} 41. h4 {[%emt 0:00:00]} f6 {[%emt 0:00:06]} 42. h5+ {[%emt 0:00:00]} Kg5 {[%emt 0:00:07]} 43. Qe6 {[%emt 0:00:00]} Rd3 {[%emt 0:01:53]} 44. Qc4 {[%emt 0:00:00]} R3d4 {[%emt 0:00:26]} 45. Qf7 {[%emt 0:00:00]} R8d7 {[%emt 0:00:23]} 46. Qg8+ {[%emt 0:00:00]} Kh6 {[%emt 0:00:02]} 47. Kf2 {[%emt 0:00:00]} Rd2+ {[%emt 0:00:18]} 48. Be2 {[%emt 0:00:00]} Rxa2 {[%emt 0:01:08]} 49. Kf3 {[%emt 0:00:00]} Rad2 {[%emt 0:00:39]} 50. Qe8 {[%emt 0:00:00]} Kg5 {[%emt 0:00:31]} 51. Qe3+ {[%emt 0:00:00]} Kxh5 {[%emt 0:00:08]} 52. Kf4+ {[%emt 0:00:00]} Kg6 {[%emt 0:00:21]} 53. Qg3+ {[%emt 0:00:00]} Kf7 {[%emt 0:00:41]} 54. Bc4+ {[%emt 0:00:00]} R7d5 {[%emt 0:00:53]} 55. Qc3 {[%emt 0:00:00]} Kg6 {[%emt 0:00:33]} 56. Bxd5 {[%emt 0:00:00]} Rxd5 {[%emt 0:00:01]} 57. b4 {[%emt 0:00:00]} Re5 {[%emt 0:01:32]} 58. Qg3+ {[%emt 0:00:00]} Kf7 {[%emt 0:00:00]} 59. Qa3 {[%emt 0:00:00]} Kg6 {[%emt 0:00:15]} 60. Qg3+ {[%emt 0:00:00]} Kf7 {[%emt 0:00:06]} 61. Qb3+ {[%emt 0:00:00]} Kg7 {[%emt 0:00:07]} 62. Qa2 {[%emt 0:00:00]} a6 {[%emt 0:00:43]} 63. Qa5 {[%emt 0:00:00]} Kg6 {[%emt 0:00:07]} 64. Qb6 {[%emt 0:00:03]} Re7 {[%emt 0:00:13]} 65. Kf3 {[%emt 0:00:09]} Rd7 {[%emt 0:00:21]} 66. Qa7 {[%emt 0:00:11]} Rd3+ {[%emt 0:01:22]} 67. Ke2 {[%emt 0:00:34]} Rd7 {[%emt 0:00:06]} 68. Qb8 {[%emt 0:00:04]} Kf7 {[%emt 0:01:32]} 69. Ke3 {[%emt 0:00:18]} Ke6 {[%emt 0:00:35]} 70. Qg8+ {[%emt 0:00:12]} Ke7 {[%emt 0:00:24]} 71. Qxh7+ {[%emt 0:00:06]} Kd8 {[%emt 0:00:15]} 72. Qh8+ {[%emt 0:00:09]} Kc7 {[%emt 0:00:32]} 73. Qxf6 {[%emt 0:00:04]} Rd5 {[%emt 0:00:46]} 74. Qe7+ {[%emt 0:00:10]} Kb8 {[%emt 0:00:05]} 75. Qe8+ {[%emt 0:00:24]} Ka7 {[%emt 0:00:02]} 76. Qc8 {[%emt 0:00:02]} Re5+ {[%emt 0:00:40]} 77. Kd3 {[%emt 0:00:11]} Rd5+ {[%emt 0:00:42]} 78. Kc4 {[%emt 0:00:04]} Re5 {[%emt 0:00:14]} 79. Qc7 {[%emt 0:00:54]} Rd5 {[%emt 0:00:54]} 80. Kb3 {[%emt 0:00:10]} Rd3+ {[%emt 0:00:12]} 81. Ka4 {[%emt 0:00:04]} Rd5 {[%emt 0:00:41]} 82. Qf4 {[%emt 0:00:22]} Ka8 {[%emt 0:00:27]} 83. Qf3 {[%emt 0:00:14]} Ka7 {[%emt 0:00:23]} 84. Ka5 {[%emt 0:00:01]} Rd2 {[%emt 0:00:51]} 85. Ka4 {[%emt 0:01:12]} Rd5 {[%emt 0:00:03]} 86. Qe3 {[%emt 0:00:23]} Ka8 {[%emt 0:00:17]} 87. Qe7 {[%emt 0:01:15]} Ka7 {[%emt 0:00:10]} 88. Qe6 {[%emt 0:00:05]} Ka8 {[%emt 0:00:21]} 89. Qf7 {[%emt 0:01:58]} Ka7 {[%emt 0:00:12]} 90. Kb3 {[%emt 0:00:04]} Re5 {[%emt 0:00:51]} 91. Kc3 {[%emt 0:00:08]} Rd5 {[%emt 0:00:20]} 92. Qc7 {[%emt 0:00:04]} Ka8 {[%emt 0:00:19]} 93. Qb6 {[%emt 0:00:03]} Kb8 {[%emt 0:00:38]} 94. Kc4 {[%emt 0:00:29]} Rd1 {[%emt 0:00:31]} 95. Kc3 {[%emt 0:00:25]} Rd5 {[%emt 0:00:37]} 96. Qa5 {[%emt 0:00:19]} Ka7 {[%emt 0:00:21]} 97. Qc7 {[%emt 0:00:04]} Ka8 {[%emt 0:00:29]} 98. Qc8+ {[%emt 0:00:02]} Ka7 {[%emt 0:00:09]} 99. Kc4 {[%emt 0:00:14]} Re5 {[%emt 0:00:27]} 100. Kd4 {[%emt 0:00:02]} Re4+ {[%emt 0:00:35]} 101. Kd3 {[%emt 0:00:02]} Rxb4 {[%emt 0:01:57]} 102. Qxf5 {[%emt 0:00:08]} Ra4 {[%emt 0:00:20]} 103. Kc3 {[%emt 0:00:07]} Rh4 {[%emt 0:00:15]} 1/2-1/2

[Event "Walton Rating Tournament 2023"]
[Site "Dhaka"]
[Date "2024.01.01"]
[Round "3.4"]
[White "Subrota, Biswas"]
[Black "Mohammad Shafiqul, Islam"]
[Result "1-0"]
[ECO "C65"]
[WhiteElo "2223"]
[BlackElo "1928"]
[Annotator "RC"]
[PlyCount "106"]
[EventDate "2023.12.30"]
[EventType "swiss"]
[EventCountry "BAN"]
[SourceTitle "playchess.com"]
[Source "ChessBase"]
[SourceQuality "1"]
[TimeControl "5400+30"]

1. e4 {[%emt 0:00:04]} e5 {[%emt 0:00:36]} 2. Nf3 {[%emt 0:00:28]} Nc6 {[%emt 0:00:12]} 3. Bb5 {[%emt 0:00:11]} Nf6 {[%emt 0:01:01]} 4. d3 {[%emt 0:00:03]} Bc5 {[%emt 0:00:07]} 5. c3 {[%emt 0:00:14]} Qe7 {[%emt 0:00:40]} 6. O-O {[%emt 0:00:07]} O-O {[%emt 0:03:12]} 7. Ba4 {[%emt 0:05:32]} d6 {[%emt 0:06:32]} 8. Re1 {[%emt 0:00:07]} h6 {[%emt 0:05:38]} 9. Nbd2 {[%emt 0:01:08]} Nd8 {[%emt 0:00:47]} 10. Nf1 {[%emt 0:12:36]} Bb6 {[%emt 0:15:09]} 11. Ng3 {[%emt 0:00:36]} Kh7 {[%emt 0:09:06]} 12. h3 {[%emt 0:00:30]} g6 {[%emt 0:00:40]} 13. d4 {[%emt 0:03:30]} c5 {[%emt 0:04:17]} 14. Be3 {[%emt 0:02:54]} Nc6 {[%emt 0:01:57]} 15. a3 {[%emt 0:08:12]} Rd8 {[%emt 0:07:57]} 16. Qd2 {[%emt 0:04:41]} Ng8 {[%emt 0:00:18]} 17. b4 {[%emt 0:00:40]} Bd7 {[%emt 0:01:19]} 18. Bb3 {[%emt 0:03:57]} Be8 {[%emt 0:04:59]} 19. d5 {[%emt 0:08:42]} Nb8 {[%emt 0:00:37]} 20. a4 {[%emt 0:12:39]} a5 {[%emt 0:01:28]} 21. b5 {[%emt 0:01:20]} Nd7 {[%emt 0:00:37]} 22. c4 {[%emt 0:00:18]} Bc7 {[%emt 0:01:02]} 23. Nh2 {[%emt 0:01:42]} Qh4 {[%emt 0:04:11]} 24. Nf3 {[%emt 0:00:03]} Qe7 {[%emt 0:00:43]} 25. Kf1 {[%emt 0:00:05]} Nb6 {[%emt 0:02:48]} 26. Qd3 {[%emt 0:03:41]} Bd7 {[%emt 0:01:04]} 27. Nd2 {[%emt 0:01:46]} Rf8 {[%emt 0:03:38]} 28. Kg1 {[%emt 0:05:36]} f5 {[%emt 0:02:07]} 29. exf5 {[%emt 0:00:01]} gxf5 {[%emt 0:00:03]} 30. f4 {[%emt 0:01:03]} Qh4 {[%emt 0:04:03]} 31. Ne2 {[%emt 0:00:13]} e4 {[%emt 0:00:21]} 32. Qc2 {[%emt 0:00:36]} Nf6 {[%emt 0:00:37]} 33. Bf2 {[%emt 0:02:58]} Qh5 {[%emt 0:00:08]} 34. Ng3 {[%emt 0:01:27]} Qg6 {[%emt 0:00:17]} 35. Ndf1 {[%emt 0:00:52]} Rg8 {[%emt 0:01:55]} 36. Ne3 {[%emt 0:00:03]} Nh5 {[%emt 0:01:25]} 37. Nxh5 {[%emt 0:00:15]} Qxh5 {[%emt 0:00:01]} 38. Kh2 {[%emt 0:01:13]} Rg7 {[%emt 0:00:19]} 39. Qe2 {[%emt 0:00:44]} Qf7 {[%emt 0:01:09]} 40. Bh4 {[%emt 0:01:42]} Bd8 {[%emt 0:01:20]} 41. Bxd8 {[%emt 0:00:39]} Rxd8 {[%emt 0:00:01]} 42. Rg1 {[%emt 0:00:08]} Nc8 {[%emt 0:01:53]} 43. Bc2 {[%emt 0:00:34]} Re8 {[%emt 0:00:31]} 44. g3 {[%emt 0:02:29]} b6 {[%emt 0:00:13]} 45. Rg2 {[%emt 0:00:24]} Ne7 {[%emt 0:06:31]} 46. Rag1 {[%emt 0:01:35]} Ng8 {[%emt 0:01:57]} 47. Qf2 {[%emt 0:02:00]} h5 {[%emt 0:01:25]} 48. Bd1 {[%emt 0:05:28]} Nf6 {[%emt 0:00:17]} 49. g4 {[%emt 0:03:54]} hxg4 {[%emt 0:01:03]} 50. hxg4 {[%emt 0:00:32]} Rh8 {[%emt 0:03:06]} 51. Rh1 {[%emt 0:02:30]} Kg8+ {[%emt 0:00:19]} 52. Kg1 {[%emt 0:00:02]} Rhh7 {[%emt 0:04:54]} 53. Rh3 Rxh3 {[%emt 0:00:00]} 1-0

[Event "Walton Rating Tournament 2023"]
[Site "Dhaka"]
[Date "2024.01.01"]
[Round "3.5"]
[White "Md Mutakabbir"]
[Black "Mohammad Minhaz Uddin"]
[Result "0-1"]
[ECO "C42"]
[WhiteElo "1887"]
[BlackElo "2221"]
[Annotator "RC"]
[PlyCount "64"]
[EventDate "2023.12.30"]
[EventType "swiss"]
[EventCountry "BAN"]
[SourceTitle "playchess.com"]
[Source "ChessBase"]
[SourceQuality "1"]
[TimeControl "5400+30"]

1. e4 {[%emt 0:21:29]} e5 {[%emt 0:02:01]} 2. Nf3 {[%emt 0:00:15]} Nf6 {[%emt 0:00:02]} 3. Nxe5 {[%emt 0:00:21]} d6 {[%emt 0:00:02]} 4. Nf3 {[%emt 0:00:10]} Nxe4 {[%emt 0:00:03]} 5. d4 {[%emt 0:00:30]} d5 {[%emt 0:00:02]} 6. Bd3 {[%emt 0:00:20]} Nc6 {[%emt 0:00:03]} 7. O-O {[%emt 0:00:31]} Be7 {[%emt 0:00:04]} 8. Re1 {[%emt 0:00:35]} Bg4 {[%emt 0:00:05]} 9. c3 {[%emt 0:00:50]} f5 {[%emt 0:00:04]} 10. Nbd2 {[%emt 0:01:06]} O-O {[%emt 0:00:04]} 11. Qb3 {[%emt 0:02:51]} Kh8 {[%emt 0:00:03]} 12. Qxb7 {[%emt 0:03:28]} Rf6 {[%emt 0:00:04]} 13. Qb3 {[%emt 0:02:03]} Rg6 {[%emt 0:00:12]} 14. Ne5 {[%emt 0:02:21]} Nxe5 {[%emt 0:00:06]} 15. dxe5 {[%emt 0:00:32]} Nxf2 {[%emt 0:00:18]} 16. Be2 {[%emt 0:35:04]} Bc5 {[%emt 0:00:19]} 17. Nf3 {[%emt 0:01:48]} Nd3+ {[%emt 0:08:38]} 18. Kf1 {[%emt 0:00:18]} Bxf3 {[%emt 0:00:46]} 19. Bxf3 {[%emt 0:16:12]} Qh4 {[%emt 0:00:43]} 20. Re2 {[%emt 0:00:13]} Qxh2 {[%emt 0:00:11]} 21. Rc2 {[%emt 0:00:59]} Qg1+ {[%emt 0:04:38]} 22. Ke2 {[%emt 0:00:07]} Nxc1+ {[%emt 0:00:11]} 23. Raxc1 {[%emt 0:02:38]} Qe3+ {[%emt 0:00:29]} 24. Kd1 {[%emt 0:01:23]} Qg1+ {[%emt 0:05:39]} 25. Ke2 {[%emt 0:01:26]} Rxg2+ {[%emt 0:01:17]} 26. Bxg2 {[%emt 0:00:33]} Qxg2+ {[%emt 0:00:03]} 27. Ke1 {[%emt 0:00:27]} Qg1+ {[%emt 0:01:35]} 28. Ke2 {[%emt 0:00:13]} Qf2+ {[%emt 0:00:11]} 29. Kd1 {[%emt 0:00:20]} Qf1+ {[%emt 0:00:05]} 30. Kd2 {[%emt 0:00:08]} Qf4+ {[%emt 0:00:03]} 31. Kd1 {[%emt 0:00:31]} Be3 {[%emt 0:01:27]} 32. Re2 {[%emt 0:03:12]} Qf1+ {[%emt 0:00:29]} 0-1

[Event "Walton Rating Tournament 2023"]
[Site "Dhaka"]
[Date "2024.01.01"]
[Round "3.6"]
[White "Anata, Choudhury"]
[Black "Ahmed, Walijah"]
[Result "1-0"]
[ECO "B47"]
[WhiteElo "2196"]
[BlackElo "1876"]
[Annotator "RC"]
[PlyCount "135"]
[EventDate "2023.12.30"]
[EventType "swiss"]
[EventCountry "BAN"]
[SourceTitle "playchess.com"]
[Source "ChessBase"]
[SourceQuality "1"]
[TimeControl "5400+30"]

1. e4 {[%emt 0:00:05]} c5 {[%emt 0:09:32]} 2. Nf3 {[%emt 0:00:31]} e6 {[%emt 0:00:08]} 3. d4 {[%emt 0:00:09]} cxd4 {[%emt 0:00:06]} 4. Nxd4 {[%emt 0:00:08]} Nc6 {[%emt 0:00:05]} 5. Nc3 {[%emt 0:00:10]} Qc7 {[%emt 0:00:07]} 6. Qd3 {[%emt 0:00:14]} Nf6 {[%emt 0:00:17]} 7. Ndb5 {[%emt 0:00:10]} Qb8 {[%emt 0:00:52]} 8. Qg3 {[%emt 0:00:12]} Qxg3 {[%emt 0:06:52]} 9. hxg3 {[%emt 0:00:11]} Kd8 {[%emt 0:00:16]} 10. Bf4 {[%emt 0:18:48]} Ne8 {[%emt 0:08:48]} 11. Be3 {[%emt 0:11:17]} Bb4 {[%emt 0:08:03]} 12. O-O-O {[%emt 0:01:37]} a6 {[%emt 0:06:51]} 13. Nd4 {[%emt 0:01:27]} Nxd4 14. Bxd4 {[%emt 0:00:33]} f6 {[%emt 0:03:59]} 15. Bb6+ {[%emt 0:15:09]} Ke7 {[%emt 0:01:32]} 16. Na4 {[%emt 0:00:09]} Bd6 {[%emt 0:03:06]} 17. c4 {[%emt 0:00:58]} Bc7 {[%emt 0:02:53]} 18. Be3 {[%emt 0:14:29]} d6 {[%emt 0:13:31]} 19. g4 {[%emt 0:07:04]} Bd7 {[%emt 0:04:52]} 20. Nb6 {[%emt 0:03:12]} Bxb6 {[%emt 0:01:25]} 21. Bxb6 {[%emt 0:00:13]} Rc8 {[%emt 0:01:45]} 22. Kb1 {[%emt 0:00:12]} e5 {[%emt 0:05:55]} 23. Be2 {[%emt 0:00:50]} Bc6 {[%emt 0:01:09]} 24. f3 {[%emt 0:00:29]} Nc7 {[%emt 0:00:51]} 25. Rd2 {[%emt 0:02:45]} h6 {[%emt 0:02:49]} 26. Rhd1 {[%emt 0:02:47]} Rhd8 {[%emt 0:01:18]} 27. c5 {[%emt 0:02:42]} d5 {[%emt 0:08:20]} 28. Bxc7 {[%emt 0:02:37]} Rxc7 {[%emt 0:00:04]} 29. exd5 {[%emt 0:00:11]} Rcd7 {[%emt 0:00:43]} 30. Bc4 {[%emt 0:00:50]} b5 {[%emt 0:02:17]} 31. cxb6 {[%emt 0:02:55]} Bb5 {[%emt 0:01:16]} 32. d6+ {[%emt 0:00:58]} Rxd6 {[%emt 0:00:33]} 33. Rxd6 {[%emt 0:03:54]} Rxd6 {[%emt 0:00:05]} 34. Rxd6 {[%emt 0:00:08]} Kxd6 {[%emt 0:00:04]} 35. Bd5 {[%emt 0:00:32]} Bf1 {[%emt 0:02:43]} 36. g3 {[%emt 0:00:30]} g6 {[%emt 0:01:01]} 37. Kc1 {[%emt 0:02:03]} f5 {[%emt 0:00:30]} 38. gxf5 {[%emt 0:00:15]} gxf5 {[%emt 0:00:04]} 39. Kd2 {[%emt 0:00:59]} Bb5 {[%emt 0:00:51]} 40. Ke3 {[%emt 0:00:59]} a5 {[%emt 0:00:37]} 41. f4 {[%emt 0:03:03]} exf4+ {[%emt 0:01:41]} 42. Kxf4 {[%emt 0:00:11]} Bd3 {[%emt 0:00:05]} 43. Ke3 {[%emt 0:03:38]} Ba6 {[%emt 0:01:53]} 44. Bf3 {[%emt 0:00:20]} Bc4 {[%emt 0:00:27]} 45. b3 {[%emt 0:01:15]} Bb5 {[%emt 0:00:40]} 46. Kd4 {[%emt 0:00:22]} Bf1 {[%emt 0:00:24]} 47. a3 {[%emt 0:01:04]} Bb5 {[%emt 0:00:15]} 48. Kc3 {[%emt 0:00:33]} Ba6 {[%emt 0:00:33]} 49. b4 {[%emt 0:00:02]} a4 {[%emt 0:00:55]} 50. Kd4 {[%emt 0:00:09]} Bf1 {[%emt 0:00:39]} 51. b7 {[%emt 0:00:37]} Kc7 {[%emt 0:00:04]} 52. Ke5 {[%emt 0:00:05]} Bd3 {[%emt 0:00:09]} 53. Bd1 {[%emt 0:00:20]} Kxb7 {[%emt 0:01:09]} 54. Bxa4 {[%emt 0:00:07]} Kc7 {[%emt 0:00:21]} 55. Bd1 {[%emt 0:00:35]} Kc6 {[%emt 0:00:49]} 56. a4 {[%emt 0:00:20]} Kb6 {[%emt 0:00:54]} 57. Bb3 {[%emt 0:01:08]} Kc6 {[%emt 0:00:22]} 58. Kd4 {[%emt 0:01:32]} Be4 {[%emt 0:00:56]} 59. Bc4 {[%emt 0:00:15]} Bc2 {[%emt 0:00:21]} 60. Bb5+ {[%emt 0:00:30]} Kd6 {[%emt 0:00:36]} 61. a5 {[%emt 0:00:14]} Bd1 {[%emt 0:00:35]} 62. Bd3 {[%emt 0:00:17]} Bg4 {[%emt 0:00:52]} 63. b5 {[%emt 0:00:28]} Bh3 {[%emt 0:00:15]} 64. b6 {[%emt 0:00:48]} Kc6 {[%emt 0:00:30]} 65. Bb5+ {[%emt 0:00:12]} Kd6 {[%emt 0:00:34]} 66. a6 {[%emt 0:01:09]} Bg2 {[%emt 0:00:11]} 67. Bc4 {[%emt 0:00:40]} Be4 {[%emt 0:00:58]} 68. Bd3 {[%emt 0:01:14]} 1-0